Cogmind - Beta 9.6 @@@ ROGUE MODE // 2020.07.26 @ 17:10:30 Player: dumbaq Result: Destroyed by G-34 Mercenary with Small Laser Performance ------------- Evolutions (1) 500 Regions Visited (3) 600 Robots Destroyed (29) 145 Value Destroyed (630) 630 Prototype IDs (2) 40 Alien Tech Used (0) 0 Bonus (16) 16 TOTAL SCORE: 1931 Bonus ------- High Alert Combat Kills 16 Cogmind --------- Core Integrity 0/400 Matter 300/300 Energy 100/100 System Corruption 9% Temperature Cool (6) Movement Core (50) Location -9/Materials Parts ------- > --- POWER (1) -------- (None) > --- PROPULSION (2) --- (None) > --- UTILITY (4) ------ Utility Shielding > --- WEAPON (2) ------- (None) > --- INVENTORY (4) ---- Ion Engine Peak State ------------ > --- POWER ------------ Ion Engine > --- PROPULSION ------- Light Treads > --- UTILITY ---------- Improved Terrain Scanner Seismic Analyzer Terrain Scan Processor > --- WEAPON ----------- Grenade Launcher Mining Claw > --- INVENTORY -------- Ion Engine Utility Shielding Light Assault Rifle Mining Claw [Rating: 9] Favorites ----------- Power Ion Engine Engine Ion Engine Propulsion Aluminum Leg Treads Light Treads Leg Aluminum Leg Utility Seismic Analyzer Device Improved Terrain Scanner Processor Seismic Analyzer Protection Utility Shielding Weapon Mining Claw Ballistic Gun Light Assault Rifle Launcher Grenade Launcher Slashing Weapon Mining Claw Build | -11 -10 -10 -9 ------- Run | Scr Mat Min Mat Slots Evolved 2 | . . . 2 Power . | . . . . Propulsion . | . . . . Utility 2 | . . . 2 Weapon . | . . . . Parts Attached 25 | 7 4 4 10 Power 4 | 1 1 . 2 Engine 4 | 1 1 . 2 Core . | . . . . Reactor . | . . . . Propulsion 5 | 2 1 1 1 Treads 2 | . . 1 1 Leg 3 | 2 1 . . Wheel . | . . . . Hover . | . . . . Flight . | . . . . Utility 6 | 2 . . 4 Device 3 | 1 . . 2 Storage . | . . . . Processor 2 | 1 . . 1 Hackware . | . . . . Protection 1 | . . . 1 Artifact . | . . . . Weapon 10 | 2 2 3 3 Energy Gun . | . . . . Energy Cannon . | . . . . Ballistic Gun 4 | 2 1 . 1 Ballistic Cannon . | . . . . Launcher 2 | . 1 1 . Special Weapon . | . . . . Impact Weapon . | . . . . Slashing Weapon 4 | . . 2 2 Piercing Weapon . | . . . . Special Melee Weapon . | . . . . Unidentified Prototypes . | . . . . Parts Lost 15 | . 2 . 13 Power 3 | . . . 3 Propulsion 3 | . 1 . 2 Utility 4 | . . . 4 Weapon 5 | . 1 . 4 Highest Loss Streak 7 | . 2 . 7 Average Slot Usage (%) 78 | . 93 93 60 Engine 12 | . 14 14 10 Treads 6 | . . 6 11 Leg 11 | . 25 16 . Device 12 | . 14 14 9 Processor 13 | . 14 14 13 Ballistic Gun 6 | . 19 2 . Launcher 6 | . 5 13 4 Slashing Weapon 7 | . . 12 11 Naked Turns . | . . . . Heaviest Build 11 | 8 10 11 11 Greatest Support 40 | 20 20 20 40 Greatest Overweight (x) . | . . . . Average Overweight (x) . | . . . . Largest Inventory Capacity 4 | 4 4 4 4 Average Capacity 4 | 4 4 4 4 Most Carried 4 | 4 4 4 4 Average Carried 3 | 1 2 3 3 Final Capacity 4 | 4 4 4 4 Final Carried 4 | 1 4 4 1 Class Distribution -------------------- 100% | Mutant Dominant Class ---------------- Mutant | -10/Materials Mutant | -10/Mines Mutant | -9/Materials Resources | -11 -10 -10 -9 ----------- Run | Scr Mat Min Mat Matter Collected 647 | 188 120 160 179 Remotely . | . . . . Salvage Created 946 | 81 569 160 136 Parts 59 | 7 37 1 14 Haulers Intercepted 1 | . 1 . . Recyclers Shooed 4 | . 3 . 1 Parts Field Recycled . | . . . . Retrieved Matter . | . . . . Parts Self-Destructed . | . . . . Prevented . | . . . . Kills | -11 -10 -10 -9 ------- Run | Scr Mat Min Mat Combat Hostiles Destroyed 17 | . 14 . 3 Melee 3 | . . . 3 Guns 5 | . 5 . . AOE 9 | . 9 . . Classes Destroyed 9 | 2 5 . 2 Builder 4 | . 2 . 2 Tunneler 1 | 1 . . . Hauler 1 | . 1 . . Recycler 4 | 1 3 . . Operator 1 | . 1 . . Watcher 1 | . . . 1 Swarmer 5 | . 3 . 2 Grunt 11 | . 11 . . Sentry 1 | . . . 1 Best Kill Streak 14 | 2 14 . 2 Combat Bots Only 9 | . 9 . 2 Max Kills in Single Turn 3 | 1 3 . 1 Gunslinging . | . . . . Exploded 3 | . 3 . . Melee 1 | . . . 1 Uniques/NPCs Destroyed . | . . . . Combat | -11 -10 -10 -9 -------- Run | Scr Mat Min Mat Damage Taken 1775 | . 583 . 1192 Core 554 | . 148 . 406 Absorbed by Shields . | . . . . Core Remaining (%) 70 | 100 . 40 . Volleys Fired 49 | 2 47 . . Largest 2 | 2 2 . . Hottest 50 | 40 50 . . Shots Fired 82 | 4 78 . . Gun 65 | 4 61 . . Cannon . | . . . . Launcher 17 | . 17 . . Special . | . . . . Kinetic 65 | 4 61 . . Thermal . | . . . . Explosive 17 | . 17 . . Electromagnetic . | . . . . Robot Hit Streak 7 | 3 7 . . Robot Miss Streak 6 | . 6 . . Penetration Max . | . . . . Secondary Targets . | . . . . Shots Hit Robots 58 | 3 35 6 14 Core Hits 53 | 3 40 2 8 Critical Hits 1 | . . 1 . Critical Kills . | . . . . Critical Parts Destroyed 1 | . . 1 . Melee Attacks 149 | . . 24 125 Impact . | . . . . Slashing 149 | . . 24 125 Piercing . | . . . . Sneak Attacks 4 | . . . 4 Combat Hostiles . | . . . . Follow-up Attacks . | . . . . Damage Inflicted 2786 | 30 1821 426 509 Guns 294 | 30 264 . . Cannons . | . . . . Explosions 1557 | . 1557 . . Melee 929 | . . 426 503 Ramming 6 | . . . 6 Kinetic 294 | 30 264 . . Thermal . | . . . . Explosive 1503 | . 1503 . . Electromagnetic 54 | . 54 . . Impact . | . . . . Slashing 929 | . . 426 503 Piercing . | . . . . Highest Corruption 9 | . . . 9 Average Corruption 6 | . . . 6 Corruption Purged . | . . . . Effects 18 | . . . 18 Message Errors 2 | . . . 2 Matter Fused 5 | . . . 5 Heat Flow Errors 3 | . . . 3 Parts Rejected 1 | . . . 1 Data Loss (minor) 2 | . . . 2 Data Loss (major) 2 | . . . 2 Targeting Errors 3 | . . . 3 Overload Shots . | . . . . Overflow Damage 420 | . 164 182 74 Projectiles . | . . . . Explosions 164 | . 164 . . Melee 256 | . . 182 74 Knockbacks . | . . . . Impact . | . . . . Kinetic . | . . . . Secondary . | . . . . Self-Inflicted Damage 149 | . 146 . 3 Shots 7 | . 7 . . Rammed 2 | . . . 2 Targets Rammed 2 | . . . 2 Kicked . | . . . . Crushed . | . . . . Highest Temperature 196 | . 16 . 196 Average Temperature 39 | . 7 . 85 Received Heat Transfer 315 | . 201 . 114 Siege Activations . | . . . . Robots Corrupted . | . . . . Combat Hostiles . | . . . . Parts Fried . | . . . . Impact Corruptions . | . . . . Robots Melted . | . . . . Combat Hostiles . | . . . . Parts Melted . | . . . . Heat Transferred . | . . . . Parts Sabotaged . | . . . . Parts Stolen . | . . . . Parts Stripped . | . . . . Power Chain Reactions 1 | . 1 . . Missiles Intercepted . | . . . . Alert | -11 -10 -10 -9 ------- Run | Scr Mat Min Mat Peak Influence 508 | 10 508 135 73 Average Influence 98 | 6 171 127 45 Maximum Alert Level 2 | . 2 . . Low Security (%) 90 | 100 65 100 100 Level 1 6 | . 22 . . Level 2 3 | . 11 . . Level 3 . | . . . . Level 4 . | . . . . Level 5 . | . . . . High Security . | . . . . Max Security . | . . . . Squads Dispatched 4 | . 3 . 1 Investigation 2 | . 1 . 1 Extermination . | . . . . Reinforcement 2 | . 2 . . Assault . | . . . . Garrison . | . . . . Intercept . | . . . . Construction Impeded . | . . . . Haulers Reinforced . | . . . . Stealth | -11 -10 -10 -9 --------- Run | Scr Mat Min Mat Distress Signals 4 | . 2 . 2 Communications Jammed . | . . . . Distress Signals . | . . . . Times Spotted 35 | . 25 . 10 Peak Tracking Total 6 | . 6 . 5 Tactical Retreats . | . . . . Traps | -11 -10 -10 -9 ------- Run | Scr Mat Min Mat Traps Triggered . | . . . . Indirectly . | . . . . Trap Hack Attempts . | . . . . Triggered . | . . . . Disarmed . | . . . . Reprogrammed . | . . . . Reused . | . . . . Traps Extracted . | . . . . Installed . | . . . . Triggered . | . . . . Machines | -11 -10 -10 -9 ---------- Run | Scr Mat Min Mat Machines Disabled 5 | . 5 . . Max in Single Turn 2 | . 2 . . Machines Sabotaged . | . . . . Garrisons Compromised . | . . . . Overloaded Fab Kills . | . . . . Fab Network Shutdowns . | . . . . Hacking | -11 -10 -10 -9 --------- Run | Scr Mat Min Mat Machines Accessed 2 | . 1 . 1 Terminals 1 | . 1 . . Fabricators . | . . . . Repair Stations 1 | . . . 1 Recycling Units . | . . . . Scanalyzers . | . . . . Garrison Access . | . . . . Total Hacks 11 | . 7 . 4 Successful 5 | . 2 . 3 Failed 6 | . 5 . 1 Catastrophic 1 | . 1 . . Database Lockouts . | . . . . Manual . | . . . . Terminals 7 | . 7 . . Fabricators . | . . . . Repair Stations 4 | . . . 4 Recycling Units . | . . . . Scanalyzers . | . . . . Garrison Access . | . . . . Terminal Hacks 2 | . 2 . . Prototype ID Bank 1 | . 1 . . Hauler Manifests 1 | . 1 . . Fabricator Hacks . | . . . . Repair Station Hacks 3 | . . . 3 Scan Component 1 | . . . 1 Repair 1 | . . . 1 Refit 1 | . . . 1 Recycling Unit Hacks . | . . . . Scanalyzer . | . . . . Garrison Access Hacks . | . . . . Unauthorized Hacks . | . . . . Terminals . | . . . . Fabricators . | . . . . Repair Stations . | . . . . Recycling Units . | . . . . Scanalyzers . | . . . . Garrison Access . | . . . . Data Cores Recovered . | . . . . Used . | . . . . Hacking Detections 2 | . 1 . 1 Full Trace Events 2 | . 1 . 1 Feedback Events . | . . . . Feedback Blocked . | . . . . Robot Schematics Acquired . | . . . . Robots Built . | . . . . Matter . | . . . . Time . | . . . . Total Robot Build Rating . | . . . . Part Schematics Acquired . | . . . . Parts Built . | . . . . Matter . | . . . . Time . | . . . . Total Part Build Rating . | . . . . Parts Repaired 1 | . . . 1 Time 32 | . . . 32 Parts Recycled . | . . . . Recycled Matter . | . . . . Retrieved Matter . | . . . . Retrieved Components . | . . . . Parts Scanalyzed . | . . . . Part Schematics Acquired . | . . . . Parts Damaged . | . . . . Bothacking | -11 -10 -10 -9 ------------ Run | Scr Mat Min Mat Used RIF Installer . | . . . . Robots Hacked . | . . . . Non-combat . | . . . . Combat . | . . . . Robot Hacks Applied . | . . . . Relay Couplers Released . | . . . . Robots Rewired . | . . . . Allies Hacked . | . . . . Hacks Repelled . | . . . . Allies | -11 -10 -10 -9 -------- Run | Scr Mat Min Mat Total Allies . | . . . . Largest Group . | . . . . Highest-Rated Group . | . . . . Highest-Rated Ally . | . . . . Total Orders . | . . . . Ally Attacks . | . . . . Total Damage . | . . . . Kills . | . . . . Allies Corrupted . | . . . . Allies Melted . | . . . . Intel | -11 -10 -10 -9 ------- Run | Scr Mat Min Mat Robot Analysis Total . | . . . . Derelict Logs Recovered 1 | . . 1 . Drone Launches . | . . . . Drone Recoveries . | . . . . Exploration | -11 -10 -10 -9 ------------- Run | Scr Mat Min Mat Turns Passed 1547 | 56 437 346 708 Spaces Moved 499 | 39 209 111 140 Core 13 | 13 . . . Treads 195 | . . 55 140 Legs 291 | 26 209 56 . Wheels . | . . . . Hover . | . . . . Flight . | . . . . Fastest Speed 50 | 50 120 120 160 Average Speed 133 | 96 120 139 160 Slowest Speed 160 | 120 120 160 160 Overloaded Moves . | . . . . Propulsion Burnouts . | . . . . Robots Hopped . | . . . . Cave-ins Triggered 4 | . . . 4 Exploration Rate (%) 27 | 3 49 39 19 Regions Visited 3 Branch Regions 1 Pre-discovered Areas 1 | . . 1 . Known Exits Taken . | . . . . Unknown Exits Taken 3 | 1 1 1 . Scrap Searched . | . . . . Spaces Dug 90 | . . 11 79 Terrain Destroyed 173 | . 83 11 79 Melee 90 | . . 11 79 Projectile . | . . . . AOE 83 | . 83 . . Actions | -11 -10 -10 -9 --------- Run | Scr Mat Min Mat Total 1006 | 53 328 253 372 Wait 269 | . 64 112 93 Move 492 | 38 208 110 136 Hop . | . . . . Pick Up 13 | 6 5 1 1 Fast Attach 7 | 2 . . 5 Attach 12 | 5 2 . 5 Detach . | . . . . Swap 6 | . 2 4 . Drop 3 | . . 2 1 Fire 49 | 2 47 . . Melee 149 | . . 24 125 Ram 2 | . . . 2 Kick . | . . . . Crush . | . . . . Escape Stasis 4 | . . . 4 Rewire . | . . . . Trap . | . . . . Miscellaneous . | . . . . Route ------- -11/Scrapyard -10/Materials (discovered 2 exits: [*Min x2]) -10/Mines -9/Materials History --------- Turn | Location | Event 7 | -11/Scrapyard | Discovered new exit (range 16) 57 | -11/Scrapyard | Entered Materials 128 | -10/Materials | Discovered new exit (range 12) 297 | -10/Materials | Discovered new exit (range 15) 305 | -10/Materials | Build established: Mutant 368 | -10/Materials | Core integrity fell below 50% 393 | -10/Materials | Destroyed 9 combat bots 494 | -10/Materials | Entered Mines 829 | -10/Mines | Discovered new exit (range 8) 840 | -10/Mines | Entered Materials 840 | -9/Materials | Evolved 2 slots: Utility x2 1026 | -9/Materials | Repaired Imp. Terrain Scanner 1146 | -9/Materials | Crushed by falling debris 1425 | -9/Materials | Crushed by falling debris 1445 | -9/Materials | Crushed by falling debris 1454 | -9/Materials | Crushed by falling debris 1485 | -9/Materials | Lost 3 parts (2u1w) 1514 | -9/Materials | Core integrity fell below 50% 1543 | -9/Materials | Core integrity fell below 20% 1548 | -9/Materials | Destroyed by G-34 Mercenary with Small Laser Last Messages --------------- 01500_ Imp. Ion Engine destroyed. 01500_ S-10 Pest destroyed. 01503_ Acquired 17 matter. 01506_ Acquired 85 matter. 01510_ K-01 Serf collects debris. 01514_ S-10 Pest destroyed. 01517_ U-05 Engineer lays Concrete. 01526_ Lgt. Treads destroyed. 01533_ K-01 Serf collects debris. 01535_ System corrupted: Matter fused (-5). 01537_ K-01 Serf collects debris. 01538_ Structural Scanner destroyed. 01540_ K-01 Serf collects debris. 01540_ Ion Engine destroyed. 01540_ Ion Engine ripped off. 01544_ Mining Claw destroyed. 01546_ K-01 Serf collects debris. 01546_ Slammed into G-34 Mercenary. 01547_ Destabilizing: Core damaged (-8). 01548_ Acquired 5 matter. Map ----- +----------------------------------------------------+ | """ ## ######?#?######???????????????????????? | | """ ## ############?#????????????????????????? | | ## #?#######?#??##???????????????????????? | | """ ## ##?######?#??##???????????????????????? | | """ ## ##########?#??????????????????????????? | | """ ## ##?##########?##??????????????????????? | | ## ##?#####?#?###?#??????????????????????? | | ##########################???????????????????????? | | ????????????????????????? | | | #???#????????????????????????? | | % % #####????????????????????????? | | #########"##### ##### ? ?????????????????????????? | | #??##### ###### ##### ???????????????????????????? | | ######## ###### #####? ? ??????????????????????? | | ######## ###### ####?###?????????????????????????? | | ######## ## #############????????????????????? | | ############ ## ### #????????????????????? | | ## ? # ## ### #????????????????????? | | ?# # ## ### #????????????????????? | | ##= """ # ## ### #????????????????????? | | ## """"" # ## ### #????????????????????? | | ## """"" # ## ### s #????????????????????? | | ?# """"" ]#### + t #????"???????????????? | | ## """ #[ " # ! * #??""" ??????????????? | | ## | # ## #######/###a """ """??????????? | | ######+#### ## @g ????????? | | ?? !#! ########## Y%= ????????? | | ??? #######?###### w""" """??????????? | | ##""?"???##### """ ??????????????? | | ##### #????? " #??## ku """ ??????????????? | | ?##?## #? ?? ? ??#?# a ??????????????? | | #???## ? ?? ? ? ?????????????? | | #?#??# ?? ??? ????????????? | | ???### ?? ? ?? ? ???????????? | | ??#??###+##??? ??### #######+##???????????? | | #????? ? ?##?#####?#??###+###????????????????????? | | ??#???????##??#?##?##???? ???????????????????????? | | ?????? ???#?#???####?? ?? ???????????????????????? | | ?#?#?Y? ? ???#?##?#?????? ???????????????????????? | | ??#????? ?#?#?#???##?????]???????????????????????? | | ???? ??? ?#??????????????]???????????????????????? | | ?????????????????????????????????????????????????? | | ???????????#?????????????????????????????????????? | | ?????????????????????????????????????????????????? | | ?????????????????????????????????????????????????? | | ?????????????????????????????????????????????????? | | ?????????????????????????????????????????????????? | | ?????????????????????????????????????????????????? | | ?????????????????????????????????????????????????? | | ?????????????????????????????????????????????????? | +----------------------------------------------------+ Best States ------------- Heat Dissipation 28 Energy Generation 12 Energy Capacity 265 Matter Stores 300 Matter Capacity 300 Sight Range 16 Terrain Scan Range 16 Terrain Scan Density 135 Utility Shielding 33 Evasion (%) 50 Recoil Reduction 2 Item Schematics ----------------- None Robot Schematics ------------------ None Fabricated ------------ Nothing Alien Tech Used ----------------- None Achievements -------------- Omniscient Cartographer Challenges ------------ None Game ------ Seed TerrabombSalvageTerminator Manual? 0 Play Time 00:16:39 Cumulative 8.6 hours Start 2020.07.26 @ 16:55:12 End 2020.07.26 @ 17:10:30 Sessions 1 Manual Loads 0 Difficulty Rogue Special Mode None Game No. 14 Rogue 14 Adventurer 0 Explorer 0 Win Type - Total 0 Types 0/0/0/0/0/0/0 Lore% 4 Gallery% 16 Achievement% 16 Wizard Run 0 Options --------- ASCII 0 Keyboard 0 Movement Mouse Keybinds 0 Fullscreen 2 Font 18/Terminus Map View 76x50 Tactical HUD 1 Map Filters NONE Filters NONE Steam 1 RUN: 7bc3b44e-53cd-4490-a0b2-07b73a11dc3e